Cogmind - Beta 9.4 @@@ ROGUE MODE // 2020.03.29 @ 01:21:40 // Winter2019/RPGLIKE Player: IAMCRAIG Result: Destroyed by H-66 Slayer with Gauss Rifle Performance ------------- Evolutions (4) 2000 Regions Visited (15) 3000 Robots Destroyed (323) 1615 Value Destroyed (11861) 11861 Prototype IDs (51) 1020 Alien Tech Used (1) 200 Bonus (2048) 2048 TOTAL SCORE: 21744 Bonus ------- High Alert Combat Kills 1011 Follower Combat Kills 656 Aligned with FarCom 300 Met Imprinter 300 Met R17 at Cetus 500 Friendly Fire -719 Cogmind --------- Core Integrity 0/850 Matter 34/450 Energy 600/600 System Corruption 0% Temperature Cool (0) Movement Treading (160) Location -6/Hub_04(d) Parts ------- > --- POWER (2) -------- Quantum Reactor Quantum Reactor > --- PROPULSION (4) --- Centrium Heavy Treads Centrium Heavy Treads > --- UTILITY (9) ------ Improved Cooling System Advanced Sensor Array Improved Signal Interpreter Advanced Targeting Computer Target Analyzer Makeshift Cloaking Device Centrium Medium Armor Plating Improved Hacking Suite Improved System Shield > --- WEAPON (6) ------- Enhanced Autogun Enhanced Autogun Enhanced Autogun Hypervelocity Gauss Rifle Antimatter Cannon Hypervelocity Gauss Cannon > --- INVENTORY (5) ---- Weapon Cycler Storm Laser Peak State ------------ > --- POWER ------------ Quantum Reactor Quantum Reactor > --- PROPULSION ------- Centrium Heavy Treads Centrium Heavy Treads > --- UTILITY ---------- Improved Cooling System Advanced Sensor Array Improved Signal Interpreter Advanced Targeting Computer Target Analyzer Makeshift Cloaking Device Centrium Medium Armor Plating Improved Hacking Suite Improved System Shield > --- WEAPON ----------- Enhanced Autogun Enhanced Autogun Enhanced Autogun Hypervelocity Gauss Rifle Antimatter Cannon Hypervelocity Gauss Cannon > --- INVENTORY -------- Weapon Cycler Storm Laser [Rating: 124] Favorites ----------- Power Heavy Deuterium Engine Engine Heavy Deuterium Engine Power Core Light Nuclear Core Reactor Quantum Reactor Propulsion Advanced Treads Treads Advanced Treads Leg Aluminum Leg Flight Unit Nuclear Pulse Thruster Utility Advanced Sensor Array Device Advanced Sensor Array Storage High-capacity Battery Processor Improved Signal Interpreter Hackware Makeshift Hacking Suite Protection Improved Light Armor Plating Weapon Enhanced Autogun Energy Gun EM Pulse Gun Energy Cannon Advanced Beam Cannon Ballistic Gun Enhanced Autogun Ballistic Cannon Antimatter Cannon Special Weapon Mining Laser Build | -11 -10 -10 -10 -9 -8 -7 -7 -7 -7 -6 -6 -6 -6 -6 -6 ------- Run | Scr Mat Min Exi Min Mat Fac Low Low Zio Pro Fac Ext Cet Arc Hub Slots Evolved 16 | 4 2 . 1 1 3 2 . . . 1 1 . 1 . . Power 1 | . . . 1 . . . . . . . . . . . . Propulsion 2 | . 1 . . . 1 . . . . . . . . . . Utility 8 | 2 1 . . 1 1 1 . . . 1 . . 1 . . Weapon 5 | 2 . . . . 1 1 . . . . 1 . . . . Parts Attached 160 | 9 9 4 2 1 39 23 9 2 17 9 18 7 9 1 1 Power 22 | 1 1 1 1 . 5 3 2 . 1 3 2 . 2 . . Engine 10 | 1 . 1 . . 5 2 1 . . . . . . . . Core 9 | . 1 . 1 . . 1 1 . 1 2 2 . . . . Reactor 3 | . . . . . . . . . . 1 . . 2 . . Propulsion 30 | 1 1 1 . . 8 4 2 . 3 3 4 1 2 . . Treads 24 | 1 . 1 . . 6 4 1 . 3 1 4 1 2 . . Leg 4 | . 1 . . . 2 . 1 . . . . . . . . Wheel . | . . . . . . . . . . . . . . . . Hover . | . . . . . . . . . . . . . . . . Flight 2 | . . . . . . . . . . 2 . . . . . Utility 70 | 3 5 1 . 1 14 12 4 2 7 3 8 5 3 1 1 Device 38 | 2 1 1 . 1 6 8 1 1 5 3 6 3 . . . Storage 3 | . . . . . 1 . . . 2 . . . . . . Processor 9 | 1 1 . . . 3 2 . . . . 2 . . . . Hackware 3 | . . . . . . . 1 . . . . . 1 1 . Protection 17 | . 3 . . . 4 2 2 1 . . . 2 2 . 1 Artifact . | . . . . . . . . . . . . . . . . Weapon 38 | 4 2 1 1 . 12 4 1 . 6 . 4 1 2 . . Energy Gun 12 | 1 2 . 1 . 3 2 . . 3 . . . . . . Energy Cannon 2 | . . . . . 2 . . . . . . . . . . Ballistic Gun 20 | 3 . . . . 7 2 1 . 3 . 1 1 2 . . Ballistic Cannon 3 | . . . . . . . . . . . 3 . . . . Launcher . | . . . . . . . . . . . . . . . . Special Weapon 1 | . . 1 . . . . . . . . . . . . . Impact Weapon . | . . . . . . . . . . . . . . . . Slashing Weapon . | . . . . . . . . . . . . . . . . Piercing Weapon . | . . . . . . . . . . . . . . . . Special Melee Weapon . | . . . . . . . . . . . . . . . . Unidentified Prototypes 11 | . . . . . 4 1 . . 1 1 1 . 3 . . Parts Lost . | . . . . . . . . . . . . . . . . Power . | . . . . . . . . . . . . . . . . Propulsion . | . . . . . . . . . . . . . . . . Utility . | . . . . . . . . . . . . . . . . Weapon . | . . . . . . . . . . . . . . . . Highest Loss Streak . | . . . . . . . . . . . . . . . . Average Slot Usage (%) 97 | . 99 100 93 90 97 96 95 100 99 97 98 99 97 90 89 Engine 7 | . . 2 9 8 10 10 6 11 7 5 5 5 3 . . Core 3 | . 11 7 5 8 2 . . . 2 3 5 5 . . . Treads 17 | . 11 16 18 16 18 17 17 17 17 15 18 20 17 9 9 Device 15 | . 13 19 18 23 19 12 13 11 11 14 15 17 14 14 14 Storage 1 | . . . . . 1 . . . 3 5 4 . . . . Processor 15 | . 11 10 9 8 10 22 18 17 17 15 15 15 14 14 14 Hackware 2 | . . . . . . . 3 5 5 5 5 5 5 9 9 Protection 5 | . 11 10 9 8 8 6 3 5 . . . 2 4 4 3 Energy Gun 7 | . 34 26 18 16 3 2 5 5 4 5 4 . . . . Ballistic Gun 17 | . 2 . . . 19 21 22 23 22 21 20 20 19 19 19 Ballistic Cannon 1 | . . . . . . . . . . . 2 10 9 9 9 Naked Turns . | . . . . . . . . . . . . . . . . Heaviest Build 84 | 11 18 19 29 30 43 45 42 42 49 47 59 62 84 84 84 Greatest Support 160 | 20 20 40 40 40 62 70 64 44 50 70 100 100 160 160 160 Greatest Overweight (x) 1 | . . . . . 1 1 . . 1 . . . 1 . . Average Overweight (x) . | . . . . . . . . . . . . . . . . Largest Inventory Capacity 5 | 1 1 1 2 2 5 5 5 5 5 5 5 5 5 5 5 Average Capacity 3 | . 1 1 1 2 3 5 5 5 5 5 5 5 5 5 5 Most Carried 5 | 1 1 1 2 2 4 5 5 5 5 5 5 5 5 5 5 Average Carried 3 | . . . 1 2 3 4 4 4 4 4 5 4 5 5 5 Final Capacity 5 | 1 1 1 2 2 5 5 5 5 5 5 5 5 5 5 5 Final Carried 5 | 1 1 1 2 2 4 5 5 5 5 5 5 5 5 5 5 Class Distribution -------------------- 46% | Hacker-Gunner 15% | Hacker-Executioner 10% | Hacker-Skirmisher 7% | Gunner 7% | Scavenger-Gunner 4% | Scavenger-Skirmisher Dominant Class ---------------- Gunner | -10/Materials Gunner | -10/Mines Scavenger-Mutant | -10/Exiles Scavenger-Gunner | -9/Mines Hacker-Skirmisher | -8/Materials Hacker-Gunner | -7/Factory Hacker-Gunner | -7/Lower Caves Hacker-Gunner | -7/Lower Caves Hacker-Gunner | -7/Zion Hacker-Gunner | -6/Proximity Caves Hacker-Executioner | -6/Factory Hacker-Executioner | -6/Extension Hacker-Gunner | -6/Cetus Hacker-Executioner | -6/Archives Hacker-Executioner | -6/Hub_04(d) Resources | -11 -10 -10 -10 -9 -8 -7 -7 -7 -7 -6 -6 -6 -6 -6 -6 ----------- Run | Scr Mat Min Exi Min Mat Fac Low Low Zio Pro Fac Ext Cet Arc Hub Matter Collected 8364 | 350 147 40 20 10 1081 1215 539 152 168 416 934 1596 1213 262 221 Remotely 248 | 178 70 . . . . . . . . . . . . . . Salvage Created 11612 | 160 450 239 . 206 1797 2837 502 129 . 385 1505 1749 864 302 487 Parts 691 | 13 31 20 . 9 106 183 23 25 . 32 80 77 51 11 30 Haulers Intercepted 16 | . 2 . . . 6 4 . . . . 4 . . . . Recyclers Shooed 8 | . 1 1 . . 1 1 . . . . 2 . . . 2 Parts Field Recycled . | . . . . . . . . . . . . . . . . Retrieved Matter . | . . . . . . . . . . . . . . . . Parts Self-Destructed 52 | . . . . . . . 11 21 1 19 . . . . . Prevented . | . . . . . . . . . . . . . . . . Kills | -11 -10 -10 -10 -9 -8 -7 -7 -7 -7 -6 -6 -6 -6 -6 -6 ------- Run | Scr Mat Min Exi Min Mat Fac Low Low Zio Pro Fac Ext Cet Arc Hub Combat Hostiles Destroyed 230 | . 6 9 . 7 28 59 15 9 . 17 18 23 27 4 8 Melee 1 | . . . . . . . . . . . . . . . 1 Guns 193 | . 4 5 . 7 26 59 14 9 . 17 18 10 19 1 4 Cannons 27 | . . . . . . . . . . . . 13 8 3 3 AOE 8 | . 2 4 . . 1 . 1 . . . . . . . . Classes Destroyed 18 | 3 4 1 . 1 3 2 2 . . . 1 1 . . . Worker 21 | 1 3 1 . . 9 5 . . . . 2 . . . . Builder 7 | . 1 . . . 2 1 . . . . 2 1 . . . Tunneler 7 | 4 1 . . . 1 1 . . . . . . . . . Hauler 16 | . 2 . . . 6 4 . . . . 4 . . . . Recycler 11 | 1 1 . . . 1 1 . . . . 1 4 . . 2 Minesweeper 1 | . . . . . . . 1 . . . . . . . . Operator 9 | . . . . . 1 3 . . . . 1 2 . 2 . Watcher 19 | . 3 . . . 3 4 . . . . 2 3 2 . 2 Swarmer 57 | . . 3 . 3 4 11 1 6 . 12 5 1 11 . . Grunt 89 | . 6 6 . 3 15 34 6 . . . 2 8 5 . 4 Brawler 3 | . . . . 1 . . . . . . . . 1 . 1 Duelist 4 | . . . . . . 2 1 . . . . . . . 1 Sentry 28 | . . . . . 8 6 1 . . . 3 5 . 4 1 Demolisher 2 | . . . . . . . . . . . 2 . . . . Hunter 16 | . . . . . 1 1 . 1 . . 4 7 2 . . Programmer 9 | . . . . . . 5 1 . . . 2 . . . 1 Behemoth 2 | . . . . . . . . . . . . 2 . . . Cetus Guard 8 | . . . . . . . . . . . . . 8 . . Master Thief 12 | . . . . . . . 5 2 . 5 . . . . . Thug 1 | . . . . . . . . . . . . 1 . . . Savage 1 | . . . . . . . . . . . . 1 . . . Best Kill Streak 8 | 4 4 4 . 3 8 7 5 3 . 7 5 3 5 4 6 Combat Bots Only 7 | . 2 3 . 3 7 7 5 3 . 7 4 3 5 4 4 Max Kills in Single Turn 3 | 1 2 2 . 1 2 3 1 2 . 2 3 2 3 1 3 Gunslinging 2 | . . . . . . 1 . 1 . 1 1 . 2 . . Exploded 2 | . 1 2 . . 1 . 1 . . . . . . . . Melee 1 | . . . . . . . . . . . . . . . 1 Uniques/NPCs Destroyed . | . . . . . . . . . . . . . . . . Combat | -11 -10 -10 -10 -9 -8 -7 -7 -7 -7 -6 -6 -6 -6 -6 -6 -------- Run | Scr Mat Min Exi Min Mat Fac Low Low Zio Pro Fac Ext Cet Arc Hub Damage Taken 9231 | . 200 594 . 74 1068 1623 440 164 . 340 758 1467 901 302 1300 Core 6977 | . 158 428 . 59 810 1173 345 125 . 266 586 1163 681 233 950 Absorbed by Shields . | . . . . . . . . . . . . . . . . Redirected to Core 6164 | . 142 309 . 49 672 1053 295 109 . 251 539 1058 650 214 823 Core Remaining (%) 97 | 100 . . . 95 100 . . . . 94 . . . . . Volleys Fired 600 | 10 39 51 . 19 94 91 35 11 4 30 47 72 50 22 25 Largest 6 | 3 3 3 . 1 4 5 5 5 1 5 6 6 6 6 6 Hottest 209 | 80 120 120 . 40 121 120 160 160 60 160 201 201 209 209 209 Shots Fired 2365 | 30 117 85 . 41 294 414 172 51 4 142 236 335 223 89 132 Gun 2057 | 30 117 55 . 41 294 414 172 51 4 142 228 204 139 67 99 Cannon 278 | . . . . . . . . . . . 8 131 84 22 33 Launcher . | . . . . . . . . . . . . . . . . Special 30 | . . 30 . . . . . . . . . . . . . Kinetic 1882 | 20 20 . . . 235 329 138 44 . 116 201 335 223 89 132 Thermal 300 | . . 30 . 22 57 85 34 7 4 26 35 . . . . Explosive . | . . . . . . . . . . . . . . . . Electromagnetic 183 | 10 97 55 . 19 2 . . . . . . . . . . Robot Hit Streak 52 | 6 6 7 . 12 25 52 40 14 . 37 48 50 27 36 25 Robot Miss Streak 4 | 2 3 4 . 2 3 3 2 1 . 2 1 2 2 2 1 Penetration Max 1 | . . . . . . . . . . . . . 1 1 1 Secondary Targets 46 | . 2 3 . . 6 16 . 3 . 8 4 . 4 . . Max Gunslinging Chain 2 | . 1 1 . . 1 1 . 1 . 2 1 . 2 . . Autonomous 126 | . . . . 22 33 71 . . . . . . . . . Shots Hit Robots 1678 | 15 41 24 . 25 219 326 122 34 . 104 182 250 163 70 103 Core Hits 645 | 7 26 12 . 9 77 148 32 14 . 30 75 88 71 20 36 Critical Hits 124 | . . . . . 2 10 4 2 . 6 8 28 42 11 11 Critical Kills 45 | . . . . . 1 6 1 2 . 3 4 10 14 1 3 Critical Parts Destroyed 70 | . . . . . . 4 3 . . 3 4 13 25 10 8 Melee Attacks . | . . . . . . . . . . . . . . . . Impact . | . . . . . . . . . . . . . . . . Slashing . | . . . . . . . . . . . . . . . . Piercing . | . . . . . . . . . . . . . . . . Sneak Attacks . | . . . . . . . . . . . . . . . . Combat Hostiles . | . . . . . . . . . . . . . . . . Follow-up Attacks . | . . . . . . . . . . . . . . . . Damage Inflicted 30880 | 213 770 505 . 706 3895 6718 2152 639 . 1853 3352 4680 2383 1219 1795 Guns 25625 | 213 579 277 . 693 3741 6453 2016 639 . 1853 3192 2772 1457 675 1065 Cannons 4042 | . . . . . . . . . . . 126 1888 926 493 609 Explosions 768 | . 169 218 . . 60 191 130 . . . . . . . . Melee . | . . . . . . . . . . . . . . . . Ramming 445 | . 22 10 . 13 94 74 6 . . . 34 20 . 51 121 Kinetic 22491 | 80 127 . . . 2507 4275 1283 452 . 1196 2686 4660 2383 1168 1674 Thermal 6659 | . 169 218 . 619 1266 2178 733 187 . 657 632 . . . . Explosive . | . . . . . . . . . . . . . . . . Electromagnetic 1285 | 133 452 277 . 74 28 191 130 . . . . . . . . Impact . | . . . . . . . . . . . . . . . . Slashing . | . . . . . . . . . . . . . . . . Piercing . | . . . . . . . . . . . . . . . . Highest Corruption 5 | . 1 1 1 1 1 5 3 . . . . . . . . Average Corruption 1 | . 1 1 1 1 1 3 1 . . . . . . . . Corruption Purged 10 | . . . . . 1 4 5 . . . . . . . . Effects 57 | . . 11 2 1 11 28 4 . . . . . . . . Message Errors 17 | . . 2 2 . 2 10 1 . . . . . . . . Matter Fused 7 | . . . . . . 7 . . . . . . . . . Heat Flow Errors 2 | . . . . . . 2 . . . . . . . . . Energy Discharges 8 | . . 3 . 1 2 . 2 . . . . . . . . Parts Rejected 1 | . . . . . . 1 . . . . . . . . . Data Loss (minor) 6 | . . 4 . . . 2 . . . . . . . . . Targeting Errors 11 | . . 2 . . 5 3 1 . . . . . . . . Weapon Failures 5 | . . . . . 2 3 . . . . . . . . . Overload Shots 37 | . . . . . . . 12 4 4 17 . . . . . Effects 2 | . . . . . . . 1 . . 1 . . . . . Energy Bleed 1 | . . . . . . . 1 . . . . . . . . Heat Surge 1 | . . . . . . . . . . 1 . . . . . Overflow Damage 44 | . . . . . . . 20 . . . 3 11 . . 10 Projectiles 24 | . . . . . . . . . . . 3 11 . . 10 Explosions 20 | . . . . . . . 20 . . . . . . . . Melee . | . . . . . . . . . . . . . . . . Knockbacks 27 | . 1 . . . 1 . . . . . . 13 . 1 11 Impact 3 | . 1 . . . 1 . . . . . . . . 1 . Kinetic 23 | . . . . . . . . . . . . 13 . . 10 Secondary 1 | . . . . . . . . . . . . . . . 1 Self-Inflicted Damage 320 | . . 87 . . 28 17 188 . . . . . . . . Shots 8 | . . 2 . . 1 1 4 . . . . . . . . Rammed 73 | . 6 5 . 3 17 7 1 . . . 6 6 . 3 19 Targets Rammed 79 | . 6 5 . 3 22 8 1 . . . 6 6 . 3 19 Kicked . | . . . . . . . . . . . . . . . . Crushed 6 | . . . . . 5 1 . . . . . . . . . Highest Temperature 419 | 54 168 42 . . 238 289 160 160 . 44 78 419 383 255 356 Average Temperature 81 | 17 52 21 . . 80 99 44 73 . 15 27 104 133 105 96 Received Heat Transfer 1683 | . 105 84 . 33 360 444 72 . . . 54 258 108 54 111 Effects 11 | . . . . . 3 1 . . . . . 3 . 1 3 Shutdowns 1 | . . . . . . . . . . . . 1 . . . Energy Bleed 2 | . . . . . . 1 . . . . . . . 1 . Interference 7 | . . . . . 3 . . . . . . 1 . . 3 Damage (major) 1 | . . . . . . . . . . . . 1 . . . Siege Activations . | . . . . . . . . . . . . . . . . Robots Corrupted . | . . . . . . . . . . . . . . . . Combat Hostiles . | . . . . . . . . . . . . . . . . Parts Fried 11 | 1 5 1 . . . 4 . . . . . . . . . Impact Corruptions . | . . . . . . . . . . . . . . . . Robots Melted 1 | . . . . . 1 . . . . . . . . . . Combat Hostiles 1 | . . . . . 1 . . . . . . . . . . Parts Melted 21 | . . . . 2 7 9 2 . . 1 . . . . . Heat Transferred 9783 | . 250 350 . 777 1998 2812 1166 274 . 935 1221 . . . . Parts Sabotaged . | . . . . . . . . . . . . . . . . Parts Stolen 10 | . . . . . . . 3 2 . 5 . . . . . Parts Stripped . | . . . . . . . . . . . . . . . . Power Chain Reactions 8 | . 4 2 . . 1 1 . . . . . . . . . Missiles Intercepted . | . . . . . . . . . . . . . . . . Alert | -11 -10 -10 -10 -9 -8 -7 -7 -7 -7 -6 -6 -6 -6 -6 -6 ------- Run | Scr Mat Min Exi Min Mat Fac Low Low Zio Pro Fac Ext Cet Arc Hub Peak Influence 1304 | 30 183 226 . 222 668 1304 . . . . 231 245 448 345 317 Average Influence 220 | 13 80 69 . 76 304 413 . . . . 109 93 227 289 180 Maximum Alert Level 4 | . . 1 . 1 2 4 . . . . 1 1 2 1 1 Low Security (%) 62 | 100 100 89 . 95 31 36 . . . . 93 92 62 9 50 Level 1 24 | . . 10 . 4 50 27 . . . . 6 7 29 90 49 Level 2 8 | . . . . . 18 20 . . . . . . 7 . . Level 3 1 | . . . . . . 6 . . . . . . . . . Level 4 1 | . . . . . . 8 . . . . . . . . . Level 5 . | . . . . . . . . . . . . . . . . High Security . | . . . . . . . . . . . . . . . . Max Security . | . . . . . . . . . . . . . . . . Squads Dispatched 35 | . . . . . 5 17 . . . . 6 3 1 . 3 Investigation 10 | . . . . . 3 4 . . . . 1 . 1 . 1 Extermination 7 | . . . . . . 6 . . . . 1 . . . . Reinforcement 10 | . . . . . 2 2 . . . . 3 3 . . . Assault 2 | . . . . . . 2 . . . . . . . . . Garrison 6 | . . . . . . 3 . . . . 1 . . . 2 Intercept . | . . . . . . . . . . . . . . . . Construction Impeded 2 | . . . . . 1 . . . . . . 1 . . . Haulers Reinforced 2 | . . . . . . 1 . . . . 1 . . . . Stealth | -11 -10 -10 -10 -9 -8 -7 -7 -7 -7 -6 -6 -6 -6 -6 -6 --------- Run | Scr Mat Min Exi Min Mat Fac Low Low Zio Pro Fac Ext Cet Arc Hub Distress Signals 13 | . . . . . 5 2 . . . . . 2 1 1 2 Communications Jammed . | . . . . . . . . . . . . . . . . Distress Signals . | . . . . . . . . . . . . . . . . Times Spotted 317 | . 10 9 . 7 53 70 17 9 1 19 28 31 32 19 12 Peak Tracking Total 6 | . 3 3 . 4 5 6 5 3 1 4 4 4 5 1 6 Tactical Retreats 16 | . 1 . . . 3 2 1 . . . . 2 6 . 1 Traps | -11 -10 -10 -10 -9 -8 -7 -7 -7 -7 -6 -6 -6 -6 -6 -6 ------- Run | Scr Mat Min Exi Min Mat Fac Low Low Zio Pro Fac Ext Cet Arc Hub Traps Triggered 13 | . 1 . . . . 5 4 . . . 3 . . . . Indirectly 4 | . . . . . . . 4 . . . . . . . . Trap Hack Attempts . | . . . . . . . . . . . . . . . . Triggered . | . . . . . . . . . . . . . . . . Disarmed . | . . . . . . . . . . . . . . . . Reprogrammed . | . . . . . . . . . . . . . . . . Reused 1 | . . . . . . . 1 . . . . . . . . Traps Extracted . | . . . . . . . . . . . . . . . . Installed 8 | . . . . . . . 8 . . . . . . . . Triggered 2 | . . . . . . . . 2 . . . . . . . Machines | -11 -10 -10 -10 -9 -8 -7 -7 -7 -7 -6 -6 -6 -6 -6 -6 ---------- Run | Scr Mat Min Exi Min Mat Fac Low Low Zio Pro Fac Ext Cet Arc Hub Machines Disabled 42 | . 7 5 . 11 4 5 . . . . . 3 2 4 1 Max in Single Turn 4 | . 1 1 . 1 1 4 . . . . . 1 1 2 1 Garrison Access 3 | . . . . . . 2 . . . . 1 . . . . Machines Sabotaged . | . . . . . . . . . . . . . . . . Garrisons Compromised . | . . . . . . . . . . . . . . . . Overloaded Fab Kills . | . . . . . . . . . . . . . . . . Fab Network Shutdowns . | . . . . . . . . . . . . . . . . Hacking | -11 -10 -10 -10 -9 -8 -7 -7 -7 -7 -6 -6 -6 -6 -6 -6 --------- Run | Scr Mat Min Exi Min Mat Fac Low Low Zio Pro Fac Ext Cet Arc Hub Machines Accessed 66 | . 7 . 2 . 14 20 1 1 . . 8 7 4 1 1 Terminals 44 | . 7 . . . 10 11 . . . . 5 7 4 . . Fabricators 4 | . . . . . . 4 . . . . . . . . . Repair Stations 1 | . . . . . 1 . . . . . . . . . . Recycling Units 4 | . . . . . 1 1 . . . . 2 . . . . Scanalyzers 4 | . . . . . 2 2 . . . . . . . . . Garrison Access 4 | . . . . . . 2 . . . . 1 . . . 1 Total Hacks 261 | . 25 . 8 . 59 65 1 1 . . 27 26 21 25 3 Successful 187 | . 16 . 8 . 50 41 1 1 . . 17 18 10 25 . Failed 73 | . 9 . . . 8 24 . . . . 10 8 11 . 3 Catastrophic 4 | . . . . . . 2 . . . . 1 . . . 1 Database Lockouts 2 | . . . . . 2 . . . . . . . . . . Manual 121 | . 15 . 1 . 29 31 . . 4 . 15 17 9 . . Terminals 172 | . 25 . . . 42 43 . . . . 15 26 21 . . Fabricators 11 | . . . . . . 11 . . . . . . . . . Repair Stations 7 | . . . . . 7 . . . . . . . . . . Recycling Units 14 | . . . . . 3 4 . . . . 7 . . . . Scanalyzers 11 | . . . . . 7 4 . . . . . . . . . Garrison Access 11 | . . . . . . 3 . . . . 5 . . . 3 Terminal Hacks 94 | . 8 . 8 . 17 16 1 1 . . 4 9 5 25 . Record 38 | . . . 7 . . 1 . 1 . . . . 4 25 . Part Schematic 2 | . . . . . . 2 . . . . . . . . . Robot Schematic 1 | . . . . . . 1 . . . . . . . . . Robot Analysis 1 | . . . . . 1 . . . . . . . . . . Prototype ID Bank 9 | . 2 . . . 2 5 . . . . . . . . . Open Door 6 | . . . . . . . 1 . . . . 4 1 . . Branch Access Points 2 | . 1 . . . 1 . . . . . . . . . . Emergency Access Points 1 | . 1 . . . . . . . . . . . . . . Terminal Index 2 | . 1 . . . 1 . . . . . . . . . . Repair Station Index 1 | . . . . . 1 . . . . . . . . . . Alert Level 5 | . 1 . . . 2 2 . . . . . . . . . Unreport Threat 9 | . . . . . 3 . . . . . 2 4 . . . Locate Traps 5 | . 2 . . . . 2 . . . . . 1 . . . Recall Extermination 1 | . . . . . . 1 . . . . . . . . . Recall Reinforcements 1 | . . . . . 1 . . . . . . . . . . Recall Assault 1 | . . . . . . 1 . . . . . . . . . Hauler Manifests 3 | . . . . . 2 . . . . . 1 . . . . Registered Components 2 | . . . . . . 1 . . . . 1 . . . . Registered Prototypes 1 | . . . . . 1 . . . . . . . . . . Zone Layout 2 | . . . . . 2 . . . . . . . . . . EX-Prototype ID Bank 1 | . . . 1 . . . . . . . . . . . . Fabricator Hacks 2 | . . . . . . 2 . . . . . . . . . Load Schematic 1 | . . . . . . 1 . . . . . . . . . Build 1 | . . . . . . 1 . . . . . . . . . Repair Station Hacks 5 | . . . . . 5 . . . . . . . . . . Scan Component 2 | . . . . . 2 . . . . . . . . . . Repair 2 | . . . . . 2 . . . . . . . . . . Refit 1 | . . . . . 1 . . . . . . . . . . Recycling Unit Hacks 8 | . . . . . 2 2 . . . . 4 . . . . Report Inventory 4 | . . . . . 1 1 . . . . 2 . . . . Retrieve Components 4 | . . . . . 1 1 . . . . 2 . . . . Scanalyzer 10 | . . . . . 6 4 . . . . . . . . . Insert Component 5 | . . . . . 3 2 . . . . . . . . . Analyze 5 | . . . . . 3 2 . . . . . . . . . Garrison Access Hacks 3 | . . . . . . 2 . . . . 1 . . . . Seal Access 3 | . . . . . . 2 . . . . 1 . . . . Unauthorized Hacks 146 | . 22 . . . 42 32 . . . . 18 20 12 . . Terminals 56 | . 8 . . . 18 10 . . . . 6 9 5 . . Track 6 | . 1 . . . 3 . . . . . . 2 . . . Assimilate 2 | . . . . . . 2 . . . . . . . . . Botnet 38 | . 6 . . . 10 7 . . . . 5 6 4 . . Disrupt 5 | . . . . . 3 . . . . . . 1 1 . . Operators 5 | . 1 . . . 2 1 . . . . 1 . . . . Fabricators 4 | . . . . . . 4 . . . . . . . . . Siphon 3 | . . . . . . 3 . . . . . . . . . Haulers 1 | . . . . . . 1 . . . . . . . . . Repair Stations . | . . . . . . . . . . . . . . . . Recycling Units 4 | . . . . . 1 1 . . . . 2 . . . . Reject 3 | . . . . . 1 1 . . . . 1 . . . . Mask 1 | . . . . . . . . . . . 1 . . . . Scanalyzers 1 | . . . . . 1 . . . . . . . . . . Extract 1 | . . . . . 1 . . . . . . . . . . Garrison Access . | . . . . . . . . . . . . . . . . Data Cores Recovered 3 | . . . . . . 2 . . . . 1 . . . . Used 1 | . . . . . . . . . . . 1 . . . . Hacking Detections 49 | . 7 . . . 9 16 . . . . 8 5 3 . 1 Full Trace Events 6 | . . . . . 1 2 . . . . 1 . 1 . 1 Feedback Events 2 | . . . . . 1 1 . . . . . . . . . Corruption 2 | . . . . . 1 1 . . . . . . . . . Feedback Blocked . | . . . . . . . . . . . . . . . . Robot Schematics Acquired 1 | . . . . . . 1 . . . . . . . . . Robots Built 3 | . . . . . . 3 . . . . . . . . . Matter 189 | . . . . . . 189 . . . . . . . . . Time 67 | . . . . . . 67 . . . . . . . . . Total Robot Build Rating 12 | . . . . . . 12 . . . . . . . . . Part Schematics Acquired 9 | . . . . . 5 4 . . . . . . . . . Parts Built . | . . . . . . . . . . . . . . . . Matter . | . . . . . . . . . . . . . . . . Time . | . . . . . . . . . . . . . . . . Total Part Build Rating . | . . . . . . . . . . . . . . . . Parts Repaired 2 | . . . . . 2 . . . . . . . . . . Time 76 | . . . . . 76 . . . . . . . . . . Parts Recycled . | . . . . . . . . . . . . . . . . Recycled Matter . | . . . . . . . . . . . . . . . . Retrieved Matter . | . . . . . . . . . . . . . . . . Retrieved Components 34 | . . . . . 9 10 . . . . 15 . . . . Parts Scanalyzed 5 | . . . . . 3 2 . . . . . . . . . Part Schematics Acquired 5 | . . . . . 3 2 . . . . . . . . . Parts Damaged . | . . . . . . . . . . . . . . . . Bothacking | -11 -10 -10 -10 -9 -8 -7 -7 -7 -7 -6 -6 -6 -6 -6 -6 ------------ Run | Scr Mat Min Exi Min Mat Fac Low Low Zio Pro Fac Ext Cet Arc Hub Used RIF Installer . | . . . . . . . . . . . . . . . . Robots Hacked . | . . . . . . . . . . . . . . . . Non-combat . | . . . . . . . . . . . . . . . . Combat . | . . . . . . . . . . . . . . . . Robot Hacks Applied . | . . . . . . . . . . . . . . . . Relay Couplers Released . | . . . . . . . . . . . . . . . . Robots Rewired 12 | . . . . . . . . . . . . 12 . . . Allies Hacked 2 | . . . . . . . 2 . . . . . . . . Hacks Repelled . | . . . . . . . . . . . . . . . . Allies | -11 -10 -10 -10 -9 -8 -7 -7 -7 -7 -6 -6 -6 -6 -6 -6 -------- Run | Scr Mat Min Exi Min Mat Fac Low Low Zio Pro Fac Ext Cet Arc Hub Total Allies 30 | . . 1 . 5 . 5 . . . . . 19 . . . Largest Group 6 | . . 1 . 5 5 3 3 . . . . 6 4 . . Highest-Rated Group 161 | . . 31 . 84 84 90 90 . . . . 161 125 . . Highest-Rated Ally 37 | . . 31 . 31 31 30 30 . . . . 37 37 . . Total Orders . | . . . . . . . . . . . . . . . . Ally Attacks 155 | . . 4 . 7 68 . 6 . . . . 53 17 . . Total Damage 2753 | . . 63 . 75 963 . 251 . . . . 1172 229 . . Kills 24 | . . . . 1 11 . 1 . . . . 9 2 . . Allies Corrupted . | . . . . . . . . . . . . . . . . Allies Melted . | . . . . . . . . . . . . . . . . Intel | -11 -10 -10 -10 -9 -8 -7 -7 -7 -7 -6 -6 -6 -6 -6 -6 ------- Run | Scr Mat Min Exi Min Mat Fac Low Low Zio Pro Fac Ext Cet Arc Hub Robot Analysis Total 1 | . . . . . 1 . . . . . . . . . . Derelict Logs Recovered 5 | . . 1 . 1 . . 1 1 1 . . . . . . Drone Launches . | . . . . . . . . . . . . . . . . Drone Recoveries . | . . . . . . . . . . . . . . . . Exploration | -11 -10 -10 -10 -9 -8 -7 -7 -7 -7 -6 -6 -6 -6 -6 -6 ------------- Run | Scr Mat Min Exi Min Mat Fac Low Low Zio Pro Fac Ext Cet Arc Hub Turns Passed 20884 | 148 1193 1256 515 1102 3206 3288 1735 692 2316 832 1517 1642 788 424 230 Spaces Moved 11410 | 66 634 640 318 644 1666 1738 1078 450 1417 470 804 834 371 219 61 Core 4 | 4 . . . . . . . . . . . . . . . Treads 11406 | 62 634 640 318 644 1666 1738 1078 450 1417 470 804 834 371 219 61 Legs . | . . . . . . . . . . . . . . . . Wheels . | . . . . . . . . . . . . . . . . Hover . | . . . . . . . . . . . . . . . . Flight . | . . . . . . . . . . . . . . . . Fastest Speed 50 | 50 160 160 160 160 152 145 145 145 145 152 152 155 155 160 160 Average Speed 154 | 153 160 160 160 160 156 153 148 145 148 153 154 156 156 160 160 Slowest Speed 180 | 160 160 160 160 160 172 165 153 145 165 158 158 158 180 160 160 Overloaded Moves . | . . . . . . . . . . . . . . . . Propulsion Burnouts . | . . . . . . . . . . . . . . . . Robots Hopped . | . . . . . . . . . . . . . . . . Cave-ins Triggered 1 | . . 1 . . . . . . . . . . . . . Exploration Rate (%) 68 | 5 94 99 70 99 71 47 97 57 89 67 25 78 88 96 8 Regions Visited 15 Branch Regions 11 Pre-discovered Areas 2 | . . 1 . . . . . . 1 . . . . . . Known Exits Taken 12 | . 1 . . 1 1 1 1 1 1 1 1 1 1 1 . Unknown Exits Taken 3 | 1 . 1 1 . . . . . . . . . . . . Scrap Searched 10 | . . 2 . 1 . . 2 1 2 2 . . . . . Spaces Dug 35 | . . 27 . . . . . . . 1 . 7 . . . Terrain Destroyed 139 | . 7 47 . . 7 4 18 . . 3 2 29 15 1 6 Melee . | . . . . . . . . . . . . . . . . Projectile 92 | . . 27 . . 3 4 2 . . 3 2 29 15 1 6 AOE 47 | . 7 20 . . 4 . 16 . . . . . . . . Actions | -11 -10 -10 -10 -9 -8 -7 -7 -7 -7 -6 -6 -6 -6 -6 -6 --------- Run | Scr Mat Min Exi Min Mat Fac Low Low Zio Pro Fac Ext Cet Arc Hub Total 13763 | 86 721 734 326 694 2159 2260 1170 477 1623 546 1020 1067 487 253 140 Wait 912 | . 7 17 . 11 248 288 10 2 163 18 99 34 4 1 10 Move 11395 | 65 633 639 317 643 1665 1737 1077 449 1416 469 803 833 370 218 61 Hop . | . . . . . . . . . . . . . . . . Pick Up 32 | 1 2 1 3 . 4 9 3 2 1 1 . 5 . . . Fast Attach 119 | 9 9 3 1 1 30 12 6 . 12 10 15 2 8 . 1 Attach 10 | . . . 1 . 4 4 . . 1 . . . . . . Detach 14 | . 1 . 1 . 5 1 1 . 2 1 2 . . . . Swap 32 | . . 1 . . 5 7 3 2 4 . 3 5 1 1 . Drop 113 | 1 8 4 3 . 31 15 3 . 15 3 11 9 10 . . Fire 600 | 10 39 51 . 19 94 91 35 11 4 30 47 72 50 22 25 Melee . | . . . . . . . . . . . . . . . . Ram . | . . . . . . . . . . . . . . . . Kick . | . . . . . . . . . . . . . . . . Crush 79 | . 6 5 . 3 22 8 1 . . . 6 6 . 3 19 Escape Stasis . | . . . . . . . . . . . . . . . . Rewire 48 | . . . . . . . . . . . 1 47 . . . Trap 8 | . . . . . . . 8 . . . . . . . . Miscellaneous 401 | . 16 13 . 17 51 88 23 11 5 14 33 54 44 8 24 Route ------- -11/Scrapyard -10/Materials (discovered 5 exits: [*Mat x3] / *Min x2) -10/Mines (discovered 3 exits: [*Mat x2] / *Exi) -10/Exiles -9/Mines (discovered 2 exits: *Mat x2) -8/Materials -7/Factory (discovered 2 exits: *Fac / *Low) -7/Lower Caves -7/Lower Caves (discovered 2 exits: *Fac / *Zio) -7/Zion -6/Proximity Caves -6/Factory -6/Extension (discovered 2 exits: *Fac / *Cet) -6/Cetus (discovered 2 exits: *Fac / *Arc) -6/Archives (discovered 3 exits: *Fac / *Hub x2) -6/Hub_04(d) History --------- Turn | Location | Event 7 | -11/Scrapyard | Discovered new exit (range 15) 16 | -11/Scrapyard | Upgraded with Utility slot (x2) 16 | -11/Scrapyard | Upgraded with Weapon slot (x2) 149 | -11/Scrapyard | Entered Materials 447 | -10/Materials | Discovered new exit (range 8) 604 | -10/Materials | Build established: Gunner 641 | -10/Materials | Discovered new exit (range 9) 969 | -10/Materials | Identified exit to Mines 981 | -10/Materials | Discovered new exit (range 15) 1069 | -10/Materials | Discovered new exit (range 16) 1190 | -10/Materials | Reached level 2 1212 | -10/Materials | Upgraded with Propulsion slot (x1) 1212 | -10/Materials | Upgraded with Utility slot (x1) 1342 | -10/Materials | Entered Mines 1377 | -10/Mines | Met a Derelict bent on vengeance 1731 | -10/Mines | Build established: Scavenger-Gunner 1811 | -10/Mines | Discovered new exit (range 6) 2122 | -10/Mines | Build established: Gunner 2132 | -10/Mines | Learned location of Zion (-7) 2160 | -10/Mines | Received a Mining Laser from a helpful Derelict 2245 | -10/Mines | Reached level 3 2318 | -10/Mines | Crushed by falling debris 2389 | -10/Mines | Discovered new exit (range 8) 2406 | -10/Mines | Core integrity fell below 50% 2499 | -10/Mines | Build established: Mutant 2581 | -10/Mines | Deemed a non-threat by the Exiles lab entrance 2582 | -10/Mines | Discovered new exit (range 5) 2598 | -10/Mines | Entered Exiles 2637 | -10/Exiles | Met 8R-AWN 2667 | -10/Exiles | Met EX-HEX 2717 | -10/Exiles | Met EX-BIN 2739 | -10/Exiles | Aligned with FarCom system 2741 | -10/Exiles | Given EX-Vault access code 2778 | -10/Exiles | Opened EX-Vault 2793 | -10/Exiles | Upgraded with Power slot (x1) 2796 | -10/Exiles | Found AWS/Thermal 2800 | -10/Exiles | Found Skeleton Box 2873 | -10/Exiles | Warned to stay clear of 0b10 Research branches 2995 | -10/Exiles | Met EX-DEC 3092 | -10/Exiles | Discovered new exit (range 14) 3098 | -10/Exiles | Build established: Scavenger-Mutant 3113 | -10/Exiles | Stole two prototypes: AWS/Thermal, Skeleton Box 3113 | -10/Exiles | Entered Mines 3134 | -9/Mines | Discovered new exit (range 7) 3393 | -9/Mines | Reached level 4 3402 | -9/Mines | Build established: Scavenger-Gunner 3404 | -9/Mines | Identified exit to Materials 3410 | -9/Mines | Upgraded with Utility slot (x1) 3462 | -9/Mines | Assisted by bots powering up and referring to "LRC-V3" 4173 | -9/Mines | Reached level 5 4215 | -9/Mines | Entered Materials 4215 | -8/Materials | Accompanied by 5 allies 4217 | -8/Materials | Reached level 6 4217 | -8/Materials | Upgraded with Utility slot (x1) 4220 | -8/Materials | Led the pair of lost Derelicts to an unsafe place 4292 | -8/Materials | Repaired Lgt. Armor Plating 4343 | -8/Materials | Repaired Lgt. Angular Momentum Engine 4634 | -8/Materials | Build established: Scavenger-Skirmisher 4658 | -8/Materials | Reached level 7 4665 | -8/Materials | Upgraded with Propulsion slot (x1) 4838 | -8/Materials | Reached level 8 5019 | -8/Materials | Destroyed 7 combat bots 5320 | -8/Materials | Reached level 9 5345 | -8/Materials | Upgraded with Weapon slot (x1) 5414 | -8/Materials | Discovered new exit (range 16) 5697 | -8/Materials | Build established: Hacker-Skirmisher 6577 | -8/Materials | Central database locked down 6737 | -8/Materials | Reached level 10 7419 | -8/Materials | Identified exit to Factory 7421 | -8/Materials | Entered Factory 7423 | -7/Factory | FarCom data flow suspended 7423 | -7/Factory | Reached level 11 7425 | -7/Factory | Upgraded with Utility slot (x1) 7655 | -7/Factory | Garrison activated, responded to threat 7724 | -7/Factory | Build established: Hacker-Gunner 8150 | -7/Factory | Reached level 12 9083 | -7/Factory | Reached level 13 9086 | -7/Factory | Upgraded with Weapon slot (x1) 9206 | -7/Factory | Discovered new exit (range 11) 9229 | -7/Factory | Identified exit to Lower Caves 9507 | -7/Factory | Destroyed 7 combat bots 9510 | -7/Factory | Discovered new exit (range 16) 9560 | -7/Factory | Reached level 14 9577 | -7/Factory | Identified exit to Factory 9821 | -7/Factory | First assault squad dispatched 10281 | -7/Factory | Reached level 15 10598 | -7/Factory | Fabricated L-41 Fighter (x3) 10709 | -7/Factory | Entered Lower Caves 10709 | -7/Lower Caves | Accompanied by 3 allies 10742 | -7/Lower Caves | Reached level 16 10937 | -7/Lower Caves | Encountered a Warlord checkpoint 10987 | -7/Lower Caves | Attracted the attention of an 0b10 outpost 11465 | -7/Lower Caves | Spotted R0-DAW(f) 11466 | -7/Lower Caves | Encountered a Master Thief 11466 | -7/Lower Caves | Destroyed R0-DAW(f) 11511 | -7/Lower Caves | Spotted 8D-TVR(f) 11512 | -7/Lower Caves | Encountered a Master Thief 11514 | -7/Lower Caves | Skeleton Box stolen by Master Thief 11518 | -7/Lower Caves | Destroyed 8D-TVR(f) 12024 | -7/Lower Caves | Spotted 1G-FXK(f) 12025 | -7/Lower Caves | Encountered a Master Thief 12029 | -7/Lower Caves | Broken AWS/Thermal stolen by Master Thief 12029 | -7/Lower Caves | Destroyed 1G-FXK(f) 12173 | -7/Lower Caves | Spotted CP-VW6(f) 12174 | -7/Lower Caves | Encountered a Master Thief 12177 | -7/Lower Caves | Skeleton Box stolen by Master Thief 12181 | -7/Lower Caves | Destroyed CP-VW6(f) 12287 | -7/Lower Caves | Discovered new exit (range 7) 12296 | -7/Lower Caves | Identified exit to Lower Caves 12401 | -7/Lower Caves | Spotted H4-EGH(f) 12402 | -7/Lower Caves | Encountered a Master Thief 12404 | -7/Lower Caves | Destroyed H4-EGH(f) 12444 | -7/Lower Caves | Entered another Lower Caves area 12455 | -7/Lower Caves | Discovered exit to Factory (range 10) 12683 | -7/Lower Caves | Encountered a Warlord checkpoint 12696 | -7/Lower Caves | Identified exit to Zion 13046 | -7/Lower Caves | Spotted N9-R7G(f) 13047 | -7/Lower Caves | Encountered a Master Thief 13047 | -7/Lower Caves | Spotted BV-NDK(f) 13048 | -7/Lower Caves | Encountered a Master Thief 13048 | -7/Lower Caves | Skeleton Box stolen by Master Thief 13049 | -7/Lower Caves | Destroyed N9-R7G(f) 13052 | -7/Lower Caves | Broken AWS/Thermal stolen by Master Thief 13053 | -7/Lower Caves | Destroyed BV-NDK(f) 13136 | -7/Lower Caves | Entered Zion 13179 | -7/Zion | Discovered new exit (range 16) 13202 | -7/Zion | Identified exit to Proximity Caves 13258 | -7/Zion | Received a visual enhancement algorithm 13536 | -7/Zion | Found Prototype Energy Gun 13543 | -7/Zion | Identified Storm Laser 14022 | -7/Zion | Learned Factory emergency access door positions 14037 | -7/Zion | Given A8's code to call for help 14039 | -7/Zion | Learned Factory emergency access door positions 15452 | -7/Zion | Entered Proximity Caves 15454 | -6/Proximity Caves | Reached level 17 15456 | -6/Proximity Caves | Upgraded with Utility slot (x1) 15612 | -6/Proximity Caves | Found Alien Artifact 15612 | -6/Proximity Caves | Identified Core Expander 15612 | -6/Proximity Caves | Installed Core Expander, added new Propulsion slot 15692 | -6/Proximity Caves | Spotted LV-Z95(f) 15692 | -6/Proximity Caves | Destroyed LV-Z95(f) 15706 | -6/Proximity Caves | Spotted NC-LPI(f) 15707 | -6/Proximity Caves | Encountered a Master Thief 15710 | -6/Proximity Caves | Skeleton Box stolen by Master Thief 15842 | -6/Proximity Caves | Spotted YW-CE3(f) 15843 | -6/Proximity Caves | Encountered a Master Thief 15844 | -6/Proximity Caves | Spotted BR-LGZ(f) 15845 | -6/Proximity Caves | Encountered a Master Thief 15846 | -6/Proximity Caves | Lgt. Antimatter Reactor stolen by Master Thief 15847 | -6/Proximity Caves | Adv. Heat Sink stolen by Master Thief 15853 | -6/Proximity Caves | Destroyed YW-CE3(f) 15976 | -6/Proximity Caves | Spotted BK-U45(f) 15978 | -6/Proximity Caves | Encountered a Master Thief 15979 | -6/Proximity Caves | Spotted 8A-ES1(f) 15980 | -6/Proximity Caves | Encountered a Master Thief 15982 | -6/Proximity Caves | Spk. Medium Treads stolen by Master Thief 15984 | -6/Proximity Caves | Destroyed BK-U45(f) 15988 | -6/Proximity Caves | Destroyed 8A-ES1(f) 16106 | -6/Proximity Caves | Destroyed 7 combat bots 16210 | -6/Proximity Caves | Discovered exit to Factory (range 9) 16249 | -6/Proximity Caves | Spotted RQ-ZCE(f) 16251 | -6/Proximity Caves | Encountered a Master Thief 16251 | -6/Proximity Caves | Lgt. Fission Core stolen by Master Thief 16253 | -6/Proximity Caves | Destroyed RQ-ZCE(f) 16284 | -6/Proximity Caves | Entered Factory 16285 | -6/Factory | Identified exit to Extension 16286 | -6/Factory | Reached level 18 16313 | -6/Factory | Assembled infested ambush trap array 16315 | -6/Factory | Garrison activated, responded to threat 16590 | -6/Factory | Reached level 19 16598 | -6/Factory | Upgraded with Weapon slot (x1) 16901 | -6/Factory | Build established: Hacker-Executioner 17328 | -6/Factory | Found Prototype Processor 17328 | -6/Factory | Identified Exp. Terrain Scan Processor 17801 | -6/Factory | Entered Extension 17808 | -6/Extension | Disrupted transfer network 17991 | -6/Extension | Rescued a captive Derelict 17992 | -6/Extension | Rescued a captive Derelict 18282 | -6/Extension | Reached level 20 18442 | -6/Extension | Spotted B-75 Beast 18458 | -6/Extension | Spotted B-75 Beast 18476 | -6/Extension | Core integrity fell below 50% 18480 | -6/Extension | Destroyed B-75 Beast 18491 | -6/Extension | Core integrity fell below 20% 18776 | -6/Extension | Destroyed B-75 Beast 18946 | -6/Extension | Rescued a captive Derelict 18948 | -6/Extension | Rescued a captive Derelict 19049 | -6/Extension | Rescued a captive Derelict 19199 | -6/Extension | Build established: Hacker-Mutant 19333 | -6/Extension | Rescued a captive Derelict 19334 | -6/Extension | Rescued a captive Derelict 19381 | -6/Extension | Discovered new exit (range 10) 19382 | -6/Extension | Discovered new exit (range 6) 19405 | -6/Extension | Identified exit to Cetus 19408 | -6/Extension | Identified exit to Factory 19443 | -6/Extension | Entered Cetus 19443 | -6/Cetus | Accompanied by 4 allies 19466 | -6/Cetus | Spotted Cetus Guard 19466 | -6/Cetus | Spotted Cetus Guard 19471 | -6/Cetus | Spotted Cetus Guard 19473 | -6/Cetus | Destroyed Cetus Guard 19476 | -6/Cetus | Spotted Cetus Guard 19483 | -6/Cetus | Destroyed Cetus Guard 19483 | -6/Cetus | Destroyed Cetus Guard 19486 | -6/Cetus | Destroyed Cetus Guard 19909 | -6/Cetus | Discovered new exit (range 16) 19932 | -6/Cetus | Identified exit to Archives 19968 | -6/Cetus | Destroyed Cetus Guard 19972 | -6/Cetus | Spotted Cetus Guard 19974 | -6/Cetus | Destroyed Cetus Guard 19977 | -6/Cetus | Destroyed Cetus Guard 19978 | -6/Cetus | Spotted Cetus Guard 19987 | -6/Cetus | Destroyed Cetus Guard 19998 | -6/Cetus | Discovered exit to Factory (range 16) 20007 | -6/Cetus | Met Revision 17 20085 | -6/Cetus | Reached level 21 20126 | -6/Cetus | Upgraded with Utility slot (x1) 20231 | -6/Cetus | Entered Archives 20305 | -6/Archives | Discovered new exit (range 17) 20332 | -6/Archives | Discovered new exit (range 17) 20338 | -6/Archives | Unable to access archive contents 20354 | -6/Archives | Unable to access archive contents 20374 | -6/Archives | Unable to access archive contents 20380 | -6/Archives | Discovered exit to Factory (range 17) 20390 | -6/Archives | Unable to access archive contents 20482 | -6/Archives | Identified exit to Hub_04(d) 20655 | -6/Archives | Entered Hub_04(d) 20715 | -6/Hub_04(d) | Garrison activated, responded to threat 20885 | -6/Hub_04(d) | Destroyed by H-66 Slayer with Gauss Rifle Last Messages --------------- 20862_ Penetrated by Slug. 20867_ K-01 Serf collects debris. 20868_ Used Protomatter to restore core integrity (+156, depleted) 20869_ Penetrated by Slug. 20871_ K-01 Serf collects debris. 20872_ Penetrated by Slug. 20872_ Slammed into H-66 Slayer. 20875_ Penetrated by Slug. 20875_ K-01 Serf collects debris. 20875_ Slammed into H-66 Slayer. 20878_ K-01 Serf collects debris. 20878_ Penetrated by Slug. 20878_ Archive Unit disabled. 20878_ Penetrated by Slug. 20878_ Slammed into H-66 Slayer. 20882_ Penetrated by Slug. 20882_ Slammed into H-66 Slayer. 20882_ K-01 Serf collects debris. 20883_ Slammed into H-66 Slayer. 20885_ Penetrated by Slug. Map ----- +----------------------------------------------------+ | | | ?????????????????????????????????????????????????? | | ?????????????????????????????????????????????????? | | ?????????????????????????????????????????????????? | | ?????????????????????????????????????????????????? | | ?????????????????????????????????????????????????? | | ?????????????????????????????????????????????????? | | ?????????????????????????????????????????????????? | | ?????????????????????????????????????????????????? | | ?????????????????????????????????????????????????? | | ?????????????????????????????????????????????????? | | ??????????????????????uu?????????????????????????? | | ?????????????????????????????????????????????????? | | ?????????????????????????????? #?????????????????? | | ????????????????????????????"" ??????????????????? | | ???????????????????????????? ???????????????????? | | ??????????????????????????? ????????????????????? | | ???????????#####??#########+###??????????????????? | | ########## #??# ??????????????????? | | A #### """" +?????????????????? | | gu + """" #?????????????????? | | #??# """" #?????????????????? | | #####+#### #??#""!/[k """ #?????????????????? | | #?????????#"" = = #?????????????????? | | #?????????#"" !|!h"""" #?????????????????? | | = #??????####G * @"""" +??????Y??????????? | | """" ###########"" """ #?????????????????? | | """" # ##"" """" #?????A???????????? | | """" # """ !##"" #?????????????????? | | """"k # [[## #?????????????????? | | + """!=##+##########+#?????????????????? | | * !# * +!=! * ?????????????? | | ######### """*!#== %Ru% ?????????????? | | ????????# =!########### ###?#??????????????? | | ????????# """ #??????????k????????????????????? | | ????????# k #???????????u???A?????R?????????? | | ????????##########???????????????????????????????? | | ?????????????????????????????????????????????????? | | ???????????????????????????k????????????k????????? | | ???????????A??????????????u??????????????????????? | | ????????????ug?????kw????????????????????????????? | | ?????????????????????????????????????????????????? | | ?????????????????????????????????????????????????? | | ?????????????????????????????????????????????????? | | ?????????????????????????????????????????????????? | | ?????????????????????????????????????????????????? | | ?????????????????????????????????????????????????? | | ?????????????????????????????????????????????????? | | ?????????????????????????????????????????????????? | | ?????????????????????????????????????????????????? | +----------------------------------------------------+ Best States ------------- Heat Dissipation 95 Energy Generation 55 Energy Capacity 920 Matter Stores 450 Matter Capacity 450 Sight Range 17 Robot Scan Range 29 Terrain Scan Range 16 Terrain Scan Density 60 Jamming Range 14 Cloak Strength 3 Power Amplification 20 Armor Coverage 300 Resistance: TH 20 Resistance: EX 25 Evasion (%) 40 Targeting Accuracy 8 Launcher Accuracy 20 Target Analysis 5 Core Analysis 6 Recoil Reduction 4 Offensive Hacking 22 Defensive Hacking 22 Item Schematics ----------------- Adv. Treads | -8/Materials | Scanalyzed Enh. Autogun | -8/Materials | Scanalyzed Arm. Treads | -8/Materials | Scanalyzed Imp. Aluminum Leg | -8/Materials | Extracted Airjet | -8/Materials | Extracted Adv. Beam Cannon | -7/Factory | Scanalyzed System Backup Module | -7/Factory | Scanalyzed Magnetic Acceleration Cannon | -7/Factory | Hacked Imp. Focal Shield | -7/Factory | Hacked Robot Schematics ------------------ L-41 Fighter | -7/Factory | Hacked Fabricated ------------ L-41 Fighter | x3 | -7/Factory Alien Tech Used ----------------- Core Expander Achievements -------------- None Challenges ------------ None RPGLIKE | -11 -10 -10 -10 -9 -8 -7 -7 -7 -7 -6 -6 -6 -6 -6 -6 --------- Run | Scr Mat Min Exi Min Mat Fac Low Low Zio Pro Fac Ext Cet Arc Hub Levels Raised 20 | . 1 1 . 2 5 5 1 . . 1 2 1 1 . . XP Earned 33592 | 3000 1510 1980 350 2388 7643 8245 718 453 220 1968 2095 1553 937 190 342 XP Spent 32945 | 2850 1600 . 1545 2580 7300 7975 . . 850 2300 2495 850 2600 . . Upgrades 53 | 5 2 . 6 6 8 14 . . 2 1 6 2 1 . . Power Slot 1 | . . . 1 . . . . . . . . . . . . Propulsion Slot 2 | . 1 . . . 1 . . . . . . . . . . Utility Slot 8 | 2 1 . . 1 1 1 . . . 1 . . 1 . . Weapon Slot 5 | 2 . . . . 1 1 . . . . 1 . . . . Core Integrity 5 | . . . 1 2 . . . . . . 2 . . . . Heat Dissipation 4 | . . . 2 . . 2 . . . . . . . . . Energy Generation 2 | . . . . . . . . . . . . 2 . . . Matter Storage 3 | . . . . . . . . . . . 3 . . . . Inventory Capacity 5 | 1 . . 1 . 3 . . . . . . . . . . Sight Range 1 | . . . . . . . . . 1 . . . . . . Sensor Range 2 | . . . . . . 2 . . . . . . . . . Ranged Accuracy 6 | . . . 1 1 . 4 . . . . . . . . . Hack Attack % 2 | . . . . 2 . . . . . . . . . . . Hack Defense % 2 | . . . . . 2 . . . . . . . . . . TH Resistance % 4 | . . . . . . 3 . . 1 . . . . . . KI Damage % 1 | . . . . . . 1 . . . . . . . . . Protomatter Created 3699 | . 185 144 . 106 456 1009 204 101 . 89 308 301 510 64 222 Integrity Restored 7831 | . 271 216 . 345 1037 1670 445 175 80 267 663 1021 939 192 510 Core 6126 | . 158 111 . 345 841 1173 340 130 . 225 491 671 939 192 510 Parts 1705 | . 113 105 . . 196 497 105 45 80 42 172 350 . . . Protomatter Decayed 1458 | . 67 84 . . 184 391 32 39 50 . 84 230 245 . 52 Game ------ Seed MiniCoilEdition Manual? 0 Play Time 03:37:06 Cumulative 67.7 hours Start 2020.03.28 @ 21:03:21 End 2020.03.29 @ 01:21:40 Sessions 1 Manual Loads 0 Difficulty Rogue Special Mode Winter2019/RPGLIKE Game No. 19 Rogue 19 Adventurer 0 Explorer 0 Win Type - Total 1 Types 1/0/0/0/0/0/0 Lore% 44 Gallery% 52 Achievement% 55 Wizard Run 0 Options --------- ASCII 1 Keyboard 1 Movement Numpad Keybinds 0 Fullscreen 1 Font 16/SmallcapsGlow Map View 75x55 Tactical HUD 1 Map Filters NONE Filters NONE Steam 1 RUN: 8e52d743-82ce-4990-9e02-7ead3640d675